bitfinex/quotes_ETHUSD_20240718
["timestamp","ask_amount","ask_price","bid_price","bid_amount"]
[1721322690539,2.92618,3417.5,3416.9,0.1016669]
[1721322690742,10.42607,3417.6,3416.8,2.6873]
[1721322690743,2.9262,3417.4,3416.8,2.6873]
[1721322690953,10.42607,3417.6,3416.8,2.6873]
[1721322690954,10.42607,3417.6,3417.0,0.10160484]
[1721322691100,7.5,3417.6,3416.9,0.1016669]
[1721322691302,7.5,3417.6,3417.1,2.506]
[1721322691529,7.5,3417.6,3417.2,0.48685669]
[1721322691735,7.5,3417.6,3417.2,0.58846423]
[1721322694445,7.5,3417.6,3417.2,0.10160754]
[1721322694918,7.5,3417.6,3417.0,2.2609]
[1721322695122,7.5,3417.6,3417.3,0.10149319]
[1721322695323,7.5,3417.6,3417.0,2.2609]
[1721322695523,7.5,3417.6,3417.4,0.10143115]
[1721322695524,2.92611,3417.5,3417.4,0.10143115]
[1721322695728,2.92622,3417.4,3417.0,2.2609]
[1721322697252,2.92629,3417.3,3417.0,2.2609]
[1721322697460,2.92642,3417.2,3416.7,2.4265]
[1721322697752,2.92645,3417.1,3416.7,2.4265]
[1721322698745,2.9264,3417.2,3416.7,2.4265]
[1721322698913,4.102451,3417.3,3416.7,2.4265]
[1721322698914,2.92646,3417.1,3416.7,2.4265]
[1721322699360,2.9263,3417.3,3416.7,2.4265]
[1721322699654,2.92647,3417.1,3416.7,2.4265]
[1721322700450,2.92647,3417.1,3416.8,0.09807679]
[1721322700822,2.92647,3417.1,3416.7,2.4265]
[1721322701222,2.92647,3417.1,3416.8,0.09807679]
[1721322701422,2.92647,3417.1,3416.7,2.4265]
[1721322701652,2.92647,3417.1,3416.8,0.09807679]
[1721322702256,2.92647,3417.1,3416.7,2.4265]
[1721322702763,2.92647,3417.1,3416.8,0.09807591]
[1721322703059,0.292647,3417.0,3416.3,2.4265]
[1721322703258,2.92665,3416.9,3416.3,2.4265]
[1721322703458,2.92665,3416.9,3416.4,0.09832418]
[1721322703661,2.92647,3417.1,3416.4,0.09832418]
[1721322703978,2.92632,3417.3,3416.5,2.4265]
[1721322704329,2.92632,3417.3,3416.6,0.09819828]
[1721322704757,2.92637,3417.2,3416.6,0.09819828]
[1721322706841,2.92646,3417.1,3416.6,0.09819828]
[1721322708756,2.92632,3417.3,3416.6,0.09819828]
[1721322709471,2.92631,3417.3,3416.6,0.09819828]
[1721322709876,2.92641,3417.2,3416.6,0.09819828]
[1721322710590,2.92616,3417.5,3416.6,0.09819828]
[1721322710784,2.9263,3417.3,3416.6,0.09819828]
[1721322710985,10.42605,3417.6,3416.6,0.09819828]
[1721322711185,3.0,3417.5,3416.7,2.49436867]
[1721322711697,7.5,3417.6,3417.1,2.3963]
[1721322711909,7.5,3417.6,3417.2,0.532277]
[1721322712121,7.5,3417.6,3417.2,0.63004242]
[1721322712406,7.5,3417.6,3417.2,0.09776542]
[1721322714172,2.92577,3417.9,3417.2,0.09776542]
[1721322715061,7.5,3418.0,3417.2,0.09776542]
[1721322715261,10.42569,3418.0,3417.2,0.09776542]
[1721322715609,2.92578,3417.9,3417.2,0.09776542]
[1721322715962,2.92578,3417.9,3417.1,2.3963]
[1721322716274,2.92578,3417.9,3417.2,0.09739265]
[1721322719868,2.92585,3417.8,3417.2,0.09739265]
[1721322720293,10.42576,3418.0,3417.2,0.09739265]
[1721322720606,2.92582,3417.9,3417.2,0.09739265]
[1721322720902,2.92578,3417.9,3417.2,0.09739265]
[1721322721066,5.85163,3417.9,3417.2,0.09739265]
[1721322721267,2.92586,3417.8,3417.2,0.09739265]
[1721322721577,2.92596,3417.7,3417.2,0.09739265]
[1721322721764,5.85198,3417.7,3417.2,0.09739265]
[1721322721961,2.92596,3417.7,3417.2,0.09739265]
[1721322722166,2.92596,3417.7,3417.1,2.3963]
[1721322722382,2.92596,3417.7,3417.3,0.09725172]
[1721322722666,4.260973,3417.9,3417.1,2.3963]
[1721322722667,2.92603,3417.6,3417.4,0.09720458]
[1721322722864,2.92611,3417.5,3417.4,0.09720458]
[1721322723083,2.92611,3417.5,3417.1,2.3963]
[1721322723300,2.92611,3417.5,3417.4,0.0972037]
[1721322723492,5.85229,3417.5,3417.1,2.3963]
[1721322723690,2.92611,3417.5,3417.4,0.0972037]
[1721322723894,2.92611,3417.5,3417.1,2.3963]
[1721322724070,2.92611,3417.5,3417.4,0.0972037]
[1721322724267,2.92611,3417.5,3417.1,2.3963]
[1721322724698,2.92599,3417.7,3417.2,0.09732778]
[1721322725093,1.1760973,3417.8,3417.2,0.09732778]
[1721322725269,1.1760973,3417.8,3417.1,2.3963]
[1721322725586,3.0748842,3417.7,3417.1,2.3963]
[1721322725796,2.92605,3417.6,3417.1,2.3963]
[1721322726016,2.92605,3417.6,3417.2,0.09733918]
[1721322726364,2.92621,3417.4,3417.2,0.09733918]
[1721322726601,2.92621,3417.4,3416.4,2.4321]
[1721322726602,2.92638,3417.2,3416.4,2.4321]
[1721322726987,2.92638,3417.2,3416.5,0.09776305]
[1721322727812,7.5,3417.5,3416.5,0.09776305]
[1721322727966,0.14891267,3417.4,3416.5,0.09776305]
[1721322728172,0.97232434,3417.3,3416.5,0.09776305]
[1721322728396,0.14891267,3417.2,3416.5,0.09776305]
[1721322728623,0.82341167,3417.3,3416.5,0.09776305]
[1721322728871,0.14891273,3417.2,3416.5,0.09776305]
[1721322729074,2.92655,3417.0,3416.5,0.09776305]
[1721322729469,2.92646,3417.1,3416.5,0.09776305]
[1721322729667,0.83234117,3417.2,3416.5,0.09776305]
[1721322729995,0.1489266,3417.1,3416.5,0.09776305]
[1721322730203,2.92673,3416.8,3416.5,0.09776305]
[1721322730723,2.9265,3417.1,3416.5,0.09776305]
[1721322731005,2.92664,3416.9,3416.5,0.09776305]
[1721322731215,0.14893049,3416.8,3416.5,0.09776305]
[1721322731418,2.9265,3417.1,3416.5,0.09776305]
[1721322731713,0.14892826,3417.0,3416.5,0.09776305]
[1721322731914,2.9265,3417.1,3416.5,0.09776305]
[1721322732284,2.92633,3417.3,3416.5,0.09776305]
[1721322732285,2.9262,3417.4,3416.5,0.35074936]
[1721322732484,0.1489181,3417.3,3416.6,2.2657]
[1721322732704,0.1489181,3417.2,3416.6,2.2657]
[1721322732891,10.42616,3417.5,3416.7,0.09720992]
[1721322733078,0.14890873,3417.4,3416.7,0.09720992]
[1721322733279,0.14890873,3417.3,3416.7,0.09720992]
[1721322733511,10.42616,3417.5,3416.7,0.09720992]
[1721322733711,0.14890847,3417.4,3416.7,0.09720992]
[1721322734007,0.14890847,3417.3,3416.7,0.09720992]
[1721322734205,10.42616,3417.5,3416.7,0.09720992]
[1721322734512,0.14890865,3417.4,3416.7,0.09720992]
[1721322734707,0.14890393,3417.3,3416.7,0.09720992]
[1721322735006,2.9262,3417.4,3416.7,0.09720992]
[1721322735173,3.07525502,3417.3,3416.7,0.09720992]
[1721322735369,0.14890502,3417.2,3416.7,0.09720992]
[1721322735809,4.261496,3417.4,3416.7,0.09720992]
[1721322736006,0.14891255,3417.3,3416.7,0.09720992]
[1721322736307,0.14891255,3417.2,3416.7,0.09720992]
[1721322736512,0.14891255,3417.1,3416.7,0.09720992]
[1721322737188,1.4687646,3417.3,3416.7,0.09720992]
[1721322737510,0.14891583,3417.2,3416.7,0.09720992]
[1721322737715,0.14891583,3417.1,3416.7,0.09720992]
[1721322737901,2.92637,3417.2,3416.7,0.09720992]
[1721322738214,0.88105055,3417.1,3416.7,0.09720992]
[1721322738414,0.14891709,3417.0,3416.7,0.09720992]
[1721322738610,0.73213346,3417.1,3416.7,0.09720992]
[1721322738792,2.92637,3417.2,3416.7,0.09720992]
[1721322738976,0.14891693,3417.1,3416.7,0.09720992]
[1721322739176,0.14891693,3417.0,3416.7,0.09720992]
[1721322739377,2.92637,3417.2,3416.7,0.09720992]
[1721322739612,0.14891839,3417.1,3416.7,0.09720992]
[1721322739816,0.14891839,3417.0,3416.7,0.09720992]
[1721322740023,4.40850346,3417.2,3416.7,0.09720992]
[1721322740227,0.14891824,3417.1,3416.7,0.09720992]
[1721322740401,0.14891824,3417.0,3416.7,0.09720992]
[1721322740604,7.33495346,3417.2,3416.7,0.09720992]
[1721322740800,0.80055511,3417.1,3416.7,0.09720992]
[1721322740988,0.14892018,3417.0,3416.6,2.2657]
[1721322741205,2.92646,3417.1,3416.8,0.09699523]
[1721322741421,0.14891847,3417.0,3416.8,0.09699523]
[1721322741614,2.92646,3417.1,3416.6,2.2657]
[1721322741789,0.14891848,3417.0,3416.9,0.09693317]
[1721322741994,0.14891848,3417.0,3416.6,2.2657]
[1721322742220,2.92637,3417.2,3416.6,2.2657]
[1721322742528,0.14891849,3417.1,3416.7,0.09709674]
[1721322742828,0.14891729,3417.0,3416.7,0.09709674]
[1721322743015,2.92637,3417.2,3416.7,0.09709674]
[1721322743216,0.14891738,3417.1,3416.7,0.09709674]
[1721322743418,2.92637,3417.2,3416.7,0.09709674]
[1721322743419,0.14891738,3417.0,3416.7,0.09709674]
[1721322743646,2.92637,3417.2,3416.7,0.09709674]
[1721322743805,0.14891742,3417.1,3416.7,0.09709674]
[1721322744010,0.14891742,3417.0,3416.7,0.09709674]
[1721322744326,2.92637,3417.2,3416.7,0.09709674]
[1721322744539,0.14891748,3417.1,3416.7,0.09709674]
[1721322744698,0.14891748,3417.0,3416.7,0.09709674]
[1721322744891,2.92637,3417.2,3416.7,0.09709674]
[1721322745091,0.14891739,3417.1,3416.7,0.09709674]
[1721322745395,0.14891739,3417.0,3416.7,0.09709674]
[1721322745735,2.92624,3417.4,3416.7,0.09709674]
[1721322745934,0.14891284,3417.3,3416.7,0.09709674]
[1721322746099,2.92624,3417.4,3416.8,2.3204]
[1721322746100,0.14891284,3417.2,3416.8,2.3204]
[1721322746304,2.92624,3417.4,3416.8,2.41743029]
[1721322746490,10.42576,3418.0,3417.0,2.92652]
[1721322746689,10.42576,3418.0,3417.1,2.477]
[1721322746690,0.14889617,3417.9,3417.1,2.477]
[1721322746913,7.5,3418.0,3417.1,2.477]
[1721322746914,0.14889617,3417.8,3417.2,3.017352]
[1721322747098,7.5,3418.0,3417.2,3.017352]
[1721322747285,0.14888479,3417.9,3417.3,0.0967218]
[1721322747522,0.14888479,3417.8,3417.3,0.0967218]
[1721322747820,0.14888479,3417.7,3417.2,3.017352]
[1721322748046,2.92531,3418.5,3417.2,2.477]
[1721322748246,12.47,3419.7,3418.1,2.92552]
[1721322748247,0.45874884,3418.8,3418.1,2.92552]
[1721322748447,0.14884771,3418.7,3418.2,0.09601284]
[1721322748658,2.92443,3419.5,3418.2,0.09601284]
[1721322748849,2.92468,3419.2,3418.2,2.9255]
[1721322749162,2.92468,3419.2,3417.9,2.477]
[1721322749163,2.92483,3419.0,3418.3,0.09595084]
[1721322749339,0.527943,3419.4,3418.3,0.09595084]
[1721322749340,0.14884024,3418.9,3418.3,0.09595084]
[1721322749538,2.92523,3418.6,3417.9,2.477]
[1721322749735,3.07409024,3418.5,3418.4,0.09583714]
[1721322749939,3.07409024,3418.5,3417.9,2.477]
[1721322749940,2.92537,3418.4,3417.9,2.477]
[1721322750335,3.52524202,3418.5,3418.0,0.09608517]
[1721322750535,2.92531,3418.5,3418.0,0.09608517]
[1721322752460,2.92535,3418.4,3418.0,0.09608517]
[1721322752685,2.9256,3418.1,3418.0,0.09608517]
[1721322752965,5.5277,3418.9,3417.4,2.4097]
[1721322752966,2.92549,3418.3,3417.4,2.4097]
[1721322753139,2.92549,3418.3,3418.0,0.09611408]
[1721322753320,2.92549,3418.3,3417.4,2.4097]
[1721322753519,3.55277,3418.8,3417.4,2.4097]
[1721322753520,2.9256,3418.1,3417.4,2.4097]
[1721322753720,2.9256,3418.1,3417.5,0.0964242]
[1721322754133,2.9255,3418.3,3417.5,0.0964242]
[1721322754336,2.92519,3418.6,3417.5,0.63966362]
[1721322754565,3.0,3418.5,3417.5,3.56571362]
[1721322754731,5.92526,3418.5,3417.5,3.56571362]
[1721322755148,5.92527,3418.5,3417.5,3.56571362]
[1721322756556,7.5,3418.7,3417.8,2.4723]
[1721322756755,7.5,3418.7,3417.9,2.92573]
[1721322756959,7.5,3418.7,3417.9,0.0961761]
[1721322757784,7.5,3418.7,3417.9,3.0219361]
[1721322758157,7.5,3418.7,3417.9,0.0961761]
[1721322759393,7.5,3418.7,3417.9,4.03302155]
[1721322763905,7.5,3418.7,3418.0,2.4782]
[1721322764421,7.5,3418.7,3418.1,0.096017]
[1721322765694,7.5,3418.7,3418.2,2.2681]
[1721322766318,7.5,3418.7,3418.3,0.09589299]
[1721322766683,7.5,3418.7,3418.2,2.2681]
[1721322766882,7.5,3418.7,3418.3,0.09589299]
[1721322767082,7.5,3418.7,3418.2,2.2681]
[1721322767323,7.5,3418.7,3418.3,0.09589299]
[1721322767918,15.39469,3419.2,3418.4,2.41153099]
[1721322767919,7.5,3419.1,3418.4,2.41153099]
[1721322768333,7.5,3419.1,3418.5,2.92519]
[1721322768480,7.5,3419.1,3418.6,2.3157]
[1721322768685,7.5,3419.5,3418.7,0.095645]
[1721322769036,7.5,3419.5,3418.6,2.3157]
[1721322769037,8.834853,3419.5,3418.6,2.3157]
[1721322769317,8.834853,3419.5,3418.7,3.020725]
[1721322770092,7.5,3419.5,3418.7,3.020725]
[1721322770396,10.42441,3419.5,3418.7,0.095645]
[1721322770781,10.42441,3419.5,3418.6,5.24086]
[1721322770782,7.5,3419.5,3418.6,5.24086]
[1721322771258,7.5,3419.5,3418.7,0.09553815]
[1721322772209,7.5,3419.5,3418.8,2.4097]
[1721322772613,7.5,3419.5,3418.9,0.09541418]
[1721322773891,2.92432,3419.6,3418.9,0.09541418]
[1721322774224,3.0,3419.5,3418.9,0.09541418]
[1721322775219,7.5,3419.8,3419.0,2.3919]
[1721322775429,3.0,3419.7,3419.0,2.3919]
[1721322775789,3.0,3419.7,3419.1,0.09529022]
[1721322779132,7.559096,3419.7,3419.1,0.09529022]
[1721322780396,5.92428,3419.7,3419.1,0.09529022]
[1721322781151,2.92445,3419.5,3419.1,0.09529022]
[1721322781360,2.92444,3419.5,3419.1,0.09529022]
[1721322781867,2.92474,3419.1,3418.1,2.92555]
[1721322782173,2.9251,3418.7,3418.2,2.3518]
[1721322782451,2.9256,3418.1,3417.8,2.3518]
[1721322782610,2.92565,3418.1,3417.4,2.258]
[1721322782813,2.92565,3418.1,3416.5,7.44]
[1721322782814,2.92592,3417.8,3417.1,3.306]
[1721322783121,2.92595,3417.7,3417.1,3.306]
[1721322783813,2.92603,3417.6,3417.1,3.306]
[1721322784413,2.92595,3417.7,3417.1,3.306]
[1721322784721,2.92595,3417.7,3417.1,2.258]
[1721322784922,2.92578,3417.9,3417.1,2.258]
[1721322785161,2.92577,3417.9,3417.1,2.258]
[1721322785364,2.92577,3417.9,3417.1,2.776464]
[1721322785519,10.42563,3418.1,3417.1,5.702854]
[1721322785723,7.5,3418.1,3417.3,2.92626]
[1721322786062,7.5,3418.1,3417.1,5.702854]
[1721322786217,7.5,3418.1,3417.6,2.92599]
[1721322786423,7.5,3418.1,3417.7,0.292599]
[1721322787220,7.5,3418.1,3417.7,3.218529]
[1721322787421,7.5,3418.1,3417.7,0.292599]
[1721322788168,7.5,3418.1,3417.8,5.42018]
[1721322788467,10.42506,3418.8,3417.8,2.4944]
[1721322788619,13.014566,3418.8,3417.8,2.4944]
[1721322788825,10.42506,3418.8,3417.8,2.4944]
[1721322789022,2.92518,3418.6,3417.8,2.4944]
[1721322789254,10.42506,3418.8,3417.8,5.42019]
[1721322790263,2.9252,3418.6,3417.9,0.09606398]
[1721322791179,2.92545,3418.3,3417.9,0.09606398]
[1721322791605,2.92545,3418.3,3417.8,2.4944]
[1721322791871,2.9256,3418.1,3418.0,0.09600196]
[1721322792076,2.92568,3418.0,3417.9,0.09606398]
[1721322792275,2.92588,3417.8,3417.3,2.4501]
[1721322792495,5.85144,3418.0,3417.3,2.4501]
[1721322792777,2.92578,3417.9,3417.3,2.4501]
[1721322793002,2.92587,3417.8,3417.3,2.4501]
[1721322794086,2.92595,3417.7,3417.3,2.4501]
[1721322794289,2.92584,3417.9,3417.3,2.4501]
[1721322794642,2.92587,3417.8,3417.3,2.4501]
[1721322794841,2.926,3417.7,3417.3,2.4501]
[1721322795683,2.92585,3417.9,3417.3,2.4501]
[1721322796042,2.92586,3417.8,3417.3,2.4501]
[1721322796408,2.92594,3417.7,3417.3,2.4501]
[1721322796575,2.92584,3417.9,3417.3,2.4501]
[1721322796778,0.75,3418.1,3417.3,2.4501]
[1721322797000,13.35114,3418.2,3417.3,2.987747]
[1721322797520,10.42555,3418.2,3417.3,2.987747]
[1721322797680,2.92562,3418.1,3417.3,2.987747]
[1721322798780,2.92574,3418.0,3417.3,2.987747]
[1721322799112,2.92574,3418.0,3417.3,2.4501]
[1721322799263,2.92574,3418.0,3417.4,0.09637411]
[1721322800302,2.92578,3417.9,3417.4,0.09637411]
[1721322800510,2.92567,3418.1,3417.3,2.4501]
[1721322800670,2.92569,3418.0,3417.4,0.09637411]
[1721322801511,7.5,3418.2,3417.4,0.09637411]
[1721322801716,2.92578,3417.9,3417.4,0.09637411]
[1721322801916,2.92578,3417.9,3417.3,2.4501]
[1721322802111,2.92591,3417.8,3417.4,0.09637411]
[1721322802409,2.92591,3417.8,3417.3,2.4501]
[1721322802580,2.92591,3417.8,3417.5,0.09632961]
[1721322802777,2.92591,3417.8,3417.4,0.09639165]
[1721322803114,2.92591,3417.8,3417.5,0.09632961]
[1721322803420,2.92591,3417.8,3417.3,2.4501]
[1721322803620,2.92591,3417.8,3417.6,0.09626758]
[1721322803932,2.92591,3417.8,3417.3,2.4501]
[1721322804113,2.92569,3418.0,3417.4,0.09639165]
[1721322804644,2.92586,3417.8,3417.4,0.09639165]
[1721322804993,2.92586,3417.8,3417.3,2.69511]
[1721322805334,2.92569,3418.0,3417.4,0.09639165]
[1721322805497,5.85145,3418.0,3417.4,0.09639165]
[1721322806039,2.9258,3417.9,3417.4,0.09639165]
[1721322806436,2.9258,3417.9,3417.3,2.69511]
[1721322806643,2.92587,3417.8,3417.5,0.09632961]
[1721322806824,2.92587,3417.8,3417.4,0.09639165]
[1721322807026,2.92587,3417.8,3417.6,0.09626758]
[1721322807228,2.92587,3417.8,3417.5,0.09632961]
[1721322807402,2.92587,3417.8,3417.3,2.4501]
[1721322807602,2.92587,3417.8,3417.6,0.09626758]
[1721322807801,2.92587,3417.8,3417.3,2.4501]
[1721322808037,2.92587,3417.8,3417.7,0.09620555]
[1721322808235,2.92587,3417.8,3417.3,2.4501]
[1721322808523,2.92587,3417.8,3417.4,0.09639165]
[1721322808742,2.92587,3417.8,3417.3,2.4501]
[1721322809037,2.92587,3417.8,3417.4,0.09639165]
[1721322809411,2.92587,3417.8,3417.3,2.4501]
[1721322809613,2.92587,3417.8,3417.5,0.09632961]
[1721322809820,2.92587,3417.8,3417.4,0.09639165]
[1721322810028,2.92594,3417.7,3417.6,0.09626758]
[1721322810230,2.92602,3417.6,3417.5,0.09632961]
[1721322810404,2.92602,3417.6,3417.3,2.4501]
[1721322810723,2.9262,3417.4,3416.5,2.4793]
[1721322810928,2.9262,3417.4,3416.6,0.63763969]
[1721322811569,5.85216,3417.6,3416.6,3.56451969]
[1721322811769,2.92612,3417.5,3416.6,3.56451969]
[1721322812059,2.92612,3417.5,3416.6,0.63763969]
[1721322812260,2.92612,3417.5,3416.7,0.89708697]
[1721322812670,2.92612,3417.5,3416.8,0.09691724]
[1721322813748,2.9262,3417.4,3416.8,0.09691724]
[1721322813966,2.9262,3417.4,3416.6,0.540629]
[1721322814263,2.9262,3417.4,3416.9,0.09685518]
[1721322814440,2.9262,3417.4,3416.6,0.540629]
[1721322814645,2.9262,3417.4,3417.0,0.09679313]
[1721322814856,2.9262,3417.4,3416.6,0.540629]
[1721322815055,2.9262,3417.4,3417.1,0.09677138]
[1721322815274,2.9262,3417.4,3416.5,5.40625]
[1721322815480,2.9262,3417.4,3417.2,0.09670671]
[1721322815629,2.9262,3417.4,3416.5,5.40625]
[1721322815834,2.9262,3417.4,3417.3,0.09664466]
[1721322816035,2.9262,3417.4,3416.6,2.4254]
[1721322816244,2.9262,3417.4,3416.7,0.535235]
[1721322816474,2.9262,3417.4,3416.7,0.63225285]
[1721322816664,2.92606,3417.6,3416.7,0.63225285]
[1721322816886,3.0,3418.1,3416.7,0.63225285]
[1721322816887,3.0,3418.1,3416.8,2.4254]
[1721322817068,3.0,3418.1,3416.8,5.35206]
[1721322817069,2.92585,3417.8,3416.8,5.35206]
[1721322817401,2.92573,3418.0,3416.9,0.98799275]
[1721322817601,7.5,3418.2,3417.2,2.4404]
[1721322817821,7.5,3418.2,3417.4,2.92614]
[1721322818100,7.5,3418.2,3417.5,2.2867]
[1721322818261,2.92543,3418.3,3417.5,2.3831943]
[1721322819618,10.4253,3418.5,3417.5,5.3092943]
[1721322819809,2.92536,3418.4,3417.6,0.82355243]
[1721322820259,10.4253,3418.5,3417.7,0.09633957]
[1721322821395,13.35063,3418.5,3417.7,0.09633957]
[1721322821610,10.4253,3418.5,3417.7,0.09633957]
[1721322823392,2.92535,3418.4,3417.7,0.09633957]
[1721322823587,1.02293551,3418.3,3417.7,0.09633957]
[1721322823774,1.02293551,3418.3,3417.5,2.2867]
[1721322823983,2.92535,3418.4,3417.8,0.09626528]
[1721322824189,10.4253,3418.5,3417.5,2.2867]
[1721322824190,2.92543,3418.3,3417.5,2.2867]
[1721322824387,2.92543,3418.3,3417.9,0.09620326]
[1721322824581,10.4253,3418.5,3417.5,5.2128]
[1721322824784,10.4253,3418.5,3418.0,0.09614475]
[1721322824785,0.14887111,3418.4,3418.0,0.09614475]
[1721322824982,4.57528911,3418.4,3417.5,5.2128]
[1721322825211,0.14887062,3418.3,3418.1,0.09609237]
[1721322825510,2.92536,3418.4,3417.5,5.2128]
[1721322825820,0.14886775,3418.3,3417.5,5.2128]
[1721322826111,2.92536,3418.4,3417.6,0.09640247]
[1721322826322,0.14887042,3418.3,3417.6,0.09640247]
[1721322826535,2.92536,3418.4,3417.6,0.09640247]
[1721322826744,0.14886983,3418.3,3417.6,0.91995072]
[1721322826948,2.92536,3418.4,3417.6,0.91995072]
[1721322827103,0.14887002,3418.3,3417.6,0.91995072]
[1721322827304,2.92536,3418.4,3417.6,0.91995072]
[1721322827499,0.14887022,3418.3,3417.6,0.91995072]
[1721322827705,2.92536,3418.4,3417.6,0.91995072]
[1721322827942,0.14887026,3418.3,3417.6,0.91995072]
[1721322828117,0.14887027,3418.2,3417.6,3.84596072]
[1721322828307,7.5,3418.5,3417.7,0.90587607]
[1721322828502,7.5,3418.5,3417.6,2.92601]
[1721322828503,0.1488697,3418.4,3417.6,2.92601]
[1721322828724,0.1488697,3418.3,3417.7,0.09626685]
[1721322828918,7.5,3418.5,3417.6,2.92601]
[1721322829103,0.14886481,3418.4,3417.7,0.09626685]
[1721322829307,0.14886481,3418.3,3417.7,0.09626685]
[1721322829616,10.42526,3418.5,3417.7,0.09626685]
[1721322829819,0.14886428,3418.4,3417.7,0.09626685]
[1721322830012,10.42526,3418.5,3417.7,0.92563399]
[1721322830255,0.14886023,3418.4,3417.7,0.92563399]
[1721322830408,10.42526,3418.5,3417.7,0.92563399]
[1721322830610,0.14886274,3418.4,3417.7,0.92563399]
[1721322830918,10.42526,3418.5,3417.7,0.92563399]
[1721322831115,0.14886318,3418.4,3417.7,0.92563399]
[1721322831347,10.42526,3418.5,3417.7,0.92563399]
[1721322831725,0.14886497,3418.4,3417.7,0.92563399]
[1721322831929,10.42526,3418.5,3417.7,0.92563399]
[1721322832166,0.14886334,3418.4,3417.7,0.09626685]
[1721322832327,2.92534,3418.4,3417.7,0.09626685]
[1721322832527,0.14886649,3418.3,3417.7,0.09626685]
[1721322832757,2.92534,3418.4,3417.7,0.09626685]
[1721322832969,0.14886635,3418.3,3417.7,0.09626685]
[1721322833127,2.92534,3418.4,3417.7,0.09626685]
[1721322833328,1.49140401,3418.3,3417.7,0.09626685]
[1721322833563,0.14887001,3418.2,3417.7,0.09626685]
[1721322833766,4.267964,3418.3,3417.7,0.09626685]
[1721322833967,0.14887089,3418.2,3417.7,0.09626685]
[1721322834180,4.267964,3418.3,3417.7,0.09626685]
[1721322834334,1.32566731,3418.2,3417.7,0.09626685]
[1721322834539,1.1767964,3418.2,3417.5,2.2867]
[1721322834768,4.267964,3418.3,3417.6,0.09632625]
[1721322834968,0.14887082,3418.2,3417.6,0.09632625]
[1721322835176,2.92543,3418.3,3417.6,0.09632625]
[1721322835337,0.14887068,3418.2,3417.6,0.09632625]
[1721322835668,2.92543,3418.3,3417.6,0.09632625]
[1721322835875,0.14887078,3418.2,3417.6,0.09632625]
[1721322836175,0.14887128,3418.1,3417.6,0.09632625]
[1721322836358,2.92543,3418.3,3417.6,0.09632625]
[1721322836563,0.14886921,3418.2,3417.6,0.09632625]
[1721322836737,2.92543,3418.3,3417.6,0.09632625]
[1721322836937,0.14886781,3418.2,3417.6,0.09632625]
[1721322837137,2.92543,3418.3,3417.6,0.09632625]
[1721322837377,0.14886848,3418.2,3417.6,0.09632625]
[1721322837547,0.14886994,3418.1,3417.6,0.09632625]
[1721322837752,10.42526,3418.5,3417.6,0.62724688]
[1721322837753,13.35058,3418.5,3417.6,0.62724688]
[1721322837978,0.14887044,3418.4,3417.6,0.62724688]
[1721322838280,0.14887044,3418.3,3417.6,0.62724688]
[1721322838574,10.42526,3418.5,3417.6,0.6857615]
[1721322838776,0.14886406,3418.4,3417.6,0.6857615]
[1721322838980,0.14886406,3418.3,3417.6,0.6857615]
[1721322839141,10.42526,3418.5,3417.6,0.6857615]
[1721322839341,0.1488626,3418.4,3417.6,0.6857615]
[1721322839645,0.1488626,3418.3,3417.7,0.88246715]
[1721322839844,2.92534,3418.4,3417.6,0.15484087]
[1721322840040,0.14886122,3418.3,3417.8,0.0962241]
[1721322840267,7.5,3418.5,3417.9,2.3632]
[1721322840454,0.14885755,3418.4,3417.9,2.45936208]
[1721322840658,0.14885755,3418.3,3417.9,2.3632]
[1721322840869,7.5,3418.5,3418.0,0.09610007]
[1721322841075,0.14886357,3418.4,3418.0,0.09610007]
[1721322841275,0.14886357,3418.3,3418.0,0.09610007]
[1721322841477,7.5,3418.5,3417.9,2.3632]
[1721322841711,0.14886273,3418.4,3418.1,0.09603806]
[1721322842006,0.14886206,3418.3,3418.2,0.09597605]
[1721322842206,0.14886221,3418.3,3418.2,0.09597605]
[1721322842497,3.0,3418.5,3417.9,2.3632]
[1721322842704,0.1488621,3418.4,3417.9,2.3632]
[1721322842865,3.0,3418.5,3418.0,0.09610007]
[1721322843066,2.92504,3418.8,3417.9,2.3632]
[1721322843067,3.0,3418.7,3417.9,2.3632]
[1721322843266,0.14885607,3418.6,3417.9,5.28896]
[1721322843503,4.634988,3418.7,3418.0,0.09610007]
[1721322843704,0.14885032,3418.6,3418.0,0.09610007]
[1721322844002,4.634988,3418.7,3418.0,0.09610007]
[1721322844209,3.0,3418.7,3418.0,0.09610007]
[1721322844567,0.14885226,3418.6,3418.0,0.09610007]
[1721322844882,3.0,3418.7,3418.0,0.09610007]
[1721322845388,7.5,3418.9,3418.1,2.4201]
[1721322845712,0.14885107,3418.8,3418.1,2.4201]
[1721322845884,0.14885107,3418.8,3418.2,0.09597605]
[1721322846273,0.14885107,3418.7,3418.2,0.09597605]
[1721322846581,7.5,3418.9,3418.2,0.09597605]
[1721322847312,0.14884545,3418.8,3418.2,0.09597605]
[1721322847467,7.5,3418.9,3418.2,0.09597605]
[1721322850771,0.14885097,3418.8,3418.2,0.09597605]
[1721322850977,7.5,3418.9,3418.2,0.09597605]
[1721322851306,0.14885097,3418.8,3418.2,0.09597605]
[1721322851482,7.5,3418.9,3418.2,0.09597605]
[1721322851690,0.14885096,3418.8,3418.2,0.09597605]
[1721322851984,7.5,3418.9,3418.2,0.09597605]
[1721322852293,0.14885095,3418.8,3418.2,0.09597605]
[1721322852496,7.5,3418.9,3418.2,0.09597605]
[1721322854588,7.5,3418.9,3418.3,2.453]
[1721322854788,7.5,3418.9,3418.3,6.30153971]
[1721322854973,7.5,3418.9,3418.6,2.453]
[1721322855286,7.5,3418.9,3418.7,0.09558107]
[1721322856290,7.5,3418.9,3418.7,1.14458107]
[1721322856471,7.5,3418.9,3418.8,8.1101]
[1721322856813,7.5,3418.9,3418.8,9.13108719]
[1721322856983,19.97,3419.3,3419.0,2.92479]
[1721322857316,7.5,3419.6,3419.1,1.14432175]
[1721322860276,7.5,3419.6,3419.3,1.049]